bitfinex-derivatives/quotes_SOLF0:USTF0_20250325
["timestamp","ask_amount","ask_price","bid_price","bid_amount"]
[1742881691386,7.19843631,139.88,139.85,7.20062188]
[1742881692184,0.05013631,139.88,139.85,0.05122188]
[1742881692889,7.1491,139.86,139.85,0.05122188]
[1742881706799,7.1488,139.87,139.85,0.05122188]
[1742881707100,0.05013631,139.88,139.85,0.05122188]
[1742881707599,7.1491,139.86,139.85,0.05122188]
[1742881711703,7.1507,139.83,139.81,25.58]
[1742881712406,7.1512,139.82,139.79,11.1723]
[1742881712604,25.56,139.86,139.79,1.9554]
[1742881712804,0.05008823,139.82,139.79,2.00917247]
[1742881714202,0.05008823,139.82,139.8,7.1518]
[1742881715206,0.05008823,139.82,139.81,7.1517]
[1742881725716,2.0168,139.87,139.85,7.1491]
[1742881725913,9.1656,139.87,139.81,25.56]
[1742881726114,2.0168,139.87,139.81,25.56]
[1742881726920,0.05014305,139.85,139.83,0.0487554]
[1742881727720,0.05014305,139.85,139.83,7.1990554]
[1742881728117,0.05014305,139.85,139.83,0.0487554]
[1742881728417,0.05014305,139.85,139.83,7.1992554]
[1742881731917,0.05014305,139.85,139.84,7.1501]
[1742881738419,0.05014305,139.85,139.84,32.7101]
[1742881739122,11.1611,139.92,139.84,25.56]
[1742881739626,7.1466,139.91,139.88,7.1476]
[1742881740227,7.19895199,139.91,139.88,7.19405249]
[1742881740417,0.05235199,139.91,139.9,7.1471]
[1742881741224,0.05235199,139.91,139.89,7.1474]
[1742881741421,0.05235199,139.91,139.88,0.04645249]
[1742881741922,7.1473,139.9,139.88,0.04645249]
[1742881743122,7.19905199,139.91,139.88,0.04645249]
[1742881743323,0.05235199,139.91,139.88,0.04645249]
[1742881744026,0.05235199,139.91,139.89,7.1473]
[1742881744428,0.05235199,139.91,139.88,0.04645249]
[1742881744628,7.19915199,139.91,139.88,7.19425249]
[1742881744826,0.05235199,139.91,139.88,7.19425249]
[1742881745127,7.19915199,139.91,139.88,7.19425249]
[1742881746227,0.05235199,139.91,139.9,7.1471]
[1742881758240,0.05235199,139.91,139.88,0.04645249]
[1742881758642,7.1473,139.9,139.88,0.04645249]
[1742881759140,7.1476,139.89,139.88,0.04645249]
[1742881760744,7.1474,139.9,139.88,0.04645249]
[1742881764546,7.1476,139.89,139.88,0.04645249]
[1742881802767,25.54,139.9,139.83,25.54]
[1742881803768,7.149,139.87,139.84,7.1499]
[1742881803969,7.149,139.87,139.85,0.04693053]
[1742881804776,7.1491,139.86,139.85,0.04693053]
[1742881807866,7.1509,139.83,139.8,39.15052716]
[1742881808069,10.15407332,139.86,139.8,39.15052716]
[1742881808266,8.25957332,139.85,139.8,39.15052716]
[1742881808470,25.54,139.84,139.8,39.15052716]
[1742881808670,7.1517,139.81,139.8,39.15052716]
[1742881809064,7.1519,139.81,139.79,0.05204045]
[1742881812779,8.25957332,139.81,139.74,25.54]
[1742881813070,33.79957332,139.81,139.74,25.54]
[1742881813271,7.1527,139.79,139.75,7.1545]
[1742881813675,7.1527,139.79,139.74,25.54]
[1742881813872,7.1527,139.79,139.75,0.05290546]
[1742881814166,0.05256722,139.78,139.75,0.05290546]
[1742881814371,0.05256722,139.78,139.75,7.20720546]
[1742881814765,0.05256722,139.78,139.75,0.05290546]
[1742881815763,7.20576722,139.78,139.75,0.05290546]
[1742881816675,7.1537,139.77,139.75,7.20740546]
[1742881817567,7.20596722,139.78,139.75,7.20740546]
[1742881818074,7.1539,139.77,139.75,0.05290546]
[1742881818576,0.05256722,139.78,139.75,0.05290546]
[1742881819172,7.20606722,139.78,139.75,7.20730546]
[1742881820171,0.05256722,139.78,139.76,7.1541]
[1742881821077,7.20586722,139.78,139.75,7.20740546]
[1742881821768,7.1538,139.77,139.75,0.05290546]
[1742881821968,0.05256722,139.78,139.75,0.05290546]
[1742881822668,7.1537,139.77,139.75,0.05290546]
[1742881823875,7.1542,139.76,139.75,0.05290546]
[1742881825379,7.1553,139.74,139.69,3.8533]
[1742881825575,4.0605,139.77,139.69,27.5223]
[1742881825979,4.0605,139.77,139.7,7.157]
[1742881825980,7.1558,139.73,139.7,7.157]
[1742881826676,7.1558,139.73,139.7,7.20731535]
[1742881826677,7.20894768,139.73,139.7,7.20731535]
[1742881826980,7.1563,139.72,139.7,0.05031535]
[1742881827176,0.05314768,139.73,139.7,0.05031535]
[1742881827481,0.05314768,139.73,139.72,7.1563]
[1742881827682,0.05314768,139.73,139.72,32.6963]
[1742881833579,0.05314768,139.73,139.71,7.1563]
[1742881833787,0.05314768,139.73,139.7,0.05031535]
[1742881834486,7.20914768,139.73,139.7,7.20751535]
[1742881834885,0.05314768,139.73,139.7,7.20751535]
[1742881836484,7.1563,139.72,139.7,7.20751535]
[1742881837788,0.05314768,139.73,139.7,0.05031535]
[1742881837994,0.05314768,139.73,139.7,25.59031535]
[1742881839493,0.05314768,139.73,139.72,7.1563]
[1742881851003,3.982,139.81,139.7,25.59031535]
[1742881851208,3.982,139.81,139.71,3.9469]
[1742881851708,7.1525,139.8,139.72,2.0055]
[1742881851915,7.1525,139.8,139.73,25.54]
[1742881852099,7.1527,139.79,139.76,7.1538]
[1742881852305,0.0465382,139.78,139.76,7.1538]
[1742881852506,0.0465382,139.78,139.75,0.05293412]
[1742881853012,0.0465382,139.78,139.76,7.1542]
[1742881853310,0.0465382,139.78,139.75,0.05293412]
[1742881854406,0.0465382,139.78,139.77,7.1537]
[1742881856818,0.0465382,139.78,139.76,7.154]
[1742881859810,0.0465382,139.78,139.75,7.20743412]
[1742881860817,7.1999382,139.78,139.75,7.20743412]
[1742881861019,0.0465382,139.78,139.75,0.05293412]
[1742881861415,7.1542,139.76,139.75,0.05293412]
[1742881863821,7.156,139.73,139.7,32.697]
[1742881864821,7.20259045,139.73,139.7,32.74921653]
[1742881865721,7.1563,139.72,139.7,32.74921653]
[1742881867124,0.04659045,139.73,139.7,25.59221653]
[1742881867623,0.04659045,139.73,139.72,7.1563]
[1742881870226,0.04659045,139.73,139.71,7.1565]
[1742881870626,0.04659045,139.73,139.7,25.59221653]
[1742881871527,0.04659045,139.73,139.72,7.1563]
[1742881886636,0.04659045,139.73,139.71,7.1565]
[1742881887335,0.04659045,139.73,139.7,32.74931653]
[1742881887629,0.04659045,139.73,139.7,25.59221653]
[1742881888432,7.20259045,139.73,139.71,7.1566]
[1742881888737,0.04659045,139.73,139.71,7.1566]
[1742881894051,7.20239045,139.73,139.71,7.1566]
[1742881895145,0.04659045,139.73,139.71,7.1566]
[1742881895953,7.20239045,139.73,139.71,7.1566]
[1742881897253,7.1563,139.72,139.7,7.20931653]
[1742881901758,7.20259045,139.73,139.7,7.20931653]
[1742881904160,0.04659045,139.73,139.7,0.05221653]
[1742881904956,0.04659045,139.73,139.72,7.1563]
[1742881905262,4.0378,139.8,139.72,25.54]
[1742881905558,4.0378,139.8,139.75,7.1544]
[1742881905756,12.29737332,139.8,139.72,25.54]
[1742881906265,7.1545,139.76,139.75,0.04739462]
[1742881909365,8.25957332,139.76,139.68,25.54]
[1742881909656,8.25957332,139.77,139.68,25.54]
[1742881910262,7.156,139.73,139.7,7.1573]
[1742881910657,7.2052125,139.73,139.7,7.2054382]
[1742881913166,7.2052125,139.73,139.71,7.1568]
[1742881913363,0.0492125,139.73,139.71,7.1568]
[1742881914468,7.2051125,139.73,139.71,7.1568]
[1742881914966,7.2051125,139.73,139.7,7.2052382]
[1742881917071,7.2051125,139.73,139.71,7.1567]
[1742881920666,7.1563,139.72,139.7,7.2051382]
[1742881920871,0.0492125,139.73,139.7,0.0481382]
[1742881921773,0.0492125,139.73,139.7,7.2051382]
[1742881921973,7.2052125,139.73,139.7,7.2051382]
[1742881923172,0.0492125,139.73,139.7,0.0481382]
[1742881923665,0.0492125,139.73,139.71,7.1563]
[1742881924073,0.0492125,139.73,139.7,0.0481382]
[1742881925477,0.0492125,139.73,139.72,7.1563]
[1742881926380,2.0107,139.78,139.75,7.1544]
[1742881926572,25.52,139.8,139.71,25.52]
[1742881927379,7.154,139.77,139.74,7.1548]
[1742881927577,7.20848228,139.77,139.74,7.20775657]
[1742881931384,0.05448228,139.77,139.74,0.05295657]
[1742881932075,7.1542,139.76,139.74,0.05295657]
[1742881932883,7.20838228,139.77,139.74,0.05295657]
[1742881933386,0.05448228,139.77,139.74,0.05295657]
[1742881933583,0.05448228,139.77,139.74,25.57295657]
[1742881933887,0.05448228,139.77,139.76,7.1542]
[1742881935783,0.05448228,139.77,139.75,7.1545]
[1742881936182,0.05448228,139.77,139.74,25.57295657]
[1742881936373,0.05448228,139.77,139.76,7.1542]
[1742881940190,8.25957332,139.88,139.74,25.57295657]
[1742881940381,29.3909,139.87,139.75,5.7886]
[1742881941183,29.3909,139.87,139.81,7.1513]
[1742881941387,0.04747809,139.82,139.81,7.1513]
[1742881941588,0.05060812,139.83,139.81,7.1513]
[1742881943584,0.05060812,139.83,139.8,7.20469941]
[1742881944486,0.05060812,139.83,139.81,7.1516]
[1742881945991,7.20130812,139.83,139.8,7.20459941]
[1742881948394,7.20130812,139.83,139.8,0.05269941]
[1742881949195,7.1513,139.82,139.8,0.05269941]
[1742881949894,7.20150812,139.83,139.8,0.05269941]
[1742881950292,0.05060812,139.83,139.8,0.05269941]
[1742881951495,7.1514,139.82,139.8,0.05269941]
[1742881952396,7.1517,139.81,139.8,0.05269941]
[1742881962397,7.1514,139.82,139.8,0.05269941]
[1742881967806,7.1514,139.82,139.8,7.20479941]
[1742881968405,0.05060812,139.83,139.8,25.55269941]
[1742881969104,0.05060812,139.83,139.81,7.1517]
[1742881969807,0.05060812,139.83,139.8,25.55269941]
[1742881970507,0.05060812,139.83,139.81,7.1512]
[1742881971706,0.05060812,139.83,139.82,7.1511]
[1742881974009,0.05060812,139.83,139.81,7.1515]
[1742881974610,7.20130812,139.83,139.8,32.70459941]
[1742881975312,7.1513,139.82,139.8,25.55269941]
[1742881976513,7.1517,139.81,139.8,25.55269941]
[1742881977714,7.1514,139.82,139.8,25.55269941]
[1742881978610,7.1514,139.82,139.8,32.70489941]
[1742881979111,7.1514,139.82,139.8,25.55269941]
[1742881979317,7.1517,139.81,139.8,0.05269941]
[1742881979917,7.1514,139.82,139.8,7.20479941]
[1742881980114,7.1514,139.82,139.8,0.05269941]
[1742881980420,0.05060812,139.83,139.8,0.05269941]
[1742881980611,7.1511,139.82,139.8,0.05269941]
[1742881980807,0.05060812,139.83,139.8,0.05269941]
[1742881981217,7.1517,139.81,139.8,0.05269941]
[1742881982314,7.1514,139.82,139.8,0.05269941]
[1742881983023,7.1517,139.81,139.8,0.05269941]
[1742881984423,7.1514,139.82,139.8,0.05269941]
[1742881985111,0.05060812,139.83,139.8,0.05269941]
[1742881985723,7.1514,139.82,139.8,0.05269941]
[1742881990727,7.1517,139.81,139.8,0.05269941]
[1742881992522,37.66327332,139.82,139.74,39.15052716]
[1742881992721,8.25957332,139.8,139.74,39.15052716]
[1742881992928,1.9388,139.79,139.74,39.15052716]
[1742881993126,7.1547,139.75,139.74,39.15052716]
[1742881993629,7.1547,139.75,139.73,64.70378815]
[1742881995123,7.1552,139.74,139.73,39.20378815]
[1742881995528,7.1552,139.74,139.73,0.05326099]
[1742882002633,7.157,139.71,139.68,7.1579]
[1742882003327,7.157,139.71,139.69,7.1578]
[1742882003528,7.1574,139.7,139.66,25.5]
[1742882003723,0.05461443,139.69,139.67,7.2131895]
[1742882004133,7.21241443,139.69,139.67,7.2131895]
[1742882004934,0.05461443,139.69,139.67,7.2131895]
[1742882005736,7.21241443,139.69,139.67,7.2131895]
[1742882005932,7.21241443,139.69,139.67,0.0545895]
[1742882006837,0.05461443,139.69,139.67,0.0545895]
[1742882007342,0.05461443,139.69,139.68,7.1583]
[1742882008137,0.05461443,139.69,139.67,0.0545895]
[1742882008331,7.21251443,139.69,139.67,0.0545895]
[1742882008527,0.05461443,139.69,139.67,0.0545895]
[1742882008929,7.21271443,139.69,139.67,0.0545895]
[1742882009531,7.1583,139.68,139.67,0.0545895]
[1742882011938,2.00821443,139.69,139.63,7.1606]
[1742882012139,7.1599,139.65,139.63,7.1606]
[1742882012641,7.1596,139.66,139.63,7.1606]
[1742882012836,1.9536,139.69,139.63,7.1606]
[1742882013233,7.20802362,139.67,139.65,0.04660036]
[1742882013536,0.04872362,139.67,139.65,0.04660036]
[1742882013939,7.1593,139.66,139.65,0.04660036]
[1742882014843,7.20772362,139.67,139.65,0.04660036]
[1742882016443,7.1593,139.66,139.65,0.04660036]
[1742882020747,25.56872362,139.67,139.65,0.04660036]
[1742882021647,32.72762362,139.67,139.65,0.04660036]
[1742882023249,32.72762362,139.67,139.65,7.20640036]
[1742882023447,25.56872362,139.67,139.65,7.20640036]
[1742882023650,0.04872362,139.67,139.65,0.04660036]
[1742882023951,7.20762362,139.67,139.65,0.04660036]
[1742882027456,7.20762362,139.67,139.65,7.20640036]
[1742882027852,7.20762362,139.67,139.65,0.04660036]
[1742882030254,0.04872362,139.67,139.65,7.20620036]
[1742882031457,7.20762362,139.67,139.65,7.20620036]
[1742882032859,0.04872362,139.67,139.66,7.1593]
[1742882037660,0.04872362,139.67,139.65,7.20590036]
[1742882038265,7.20762362,139.67,139.65,0.04660036]
[1742882039560,7.1593,139.66,139.65,0.04660036]
[1742882042266,7.20772362,139.67,139.65,0.04660036]
[1742882044165,7.20772362,139.67,139.65,7.20640036]
[1742882046969,0.04872362,139.67,139.65,7.20640036]
[1742882048467,7.20762362,139.67,139.65,7.20640036]
[1742882051064,7.20762362,139.67,139.65,0.04660036]
[1742882054275,7.20762362,139.67,139.65,7.20640036]
[1742882055871,7.20762362,139.67,139.65,0.04660036]
[1742882057275,7.1593,139.66,139.65,0.04660036]
[1742882059265,7.20782362,139.67,139.65,7.20640036]
[1742882059471,7.20782362,139.67,139.65,0.04660036]
[1742882060770,7.1593,139.66,139.65,0.04660036]
[1742882063779,7.20772362,139.67,139.65,0.04660036]
[1742882065479,7.20772362,139.67,139.65,7.20640036]
[1742882067880,7.20772362,139.67,139.65,0.04660036]
[1742882068682,7.20772362,139.67,139.65,7.20640036]
[1742882069381,7.1593,139.66,139.65,0.04660036]
[1742882070479,7.161,139.63,139.6,25.5]
[1742882070681,7.161,139.63,139.59,64.65052716]
[1742882071085,7.161,139.63,139.6,7.1622]
[1742882071585,7.20798472,139.63,139.6,7.2165777]
[1742882072580,7.1614,139.62,139.6,7.2165777]
[1742882072987,0.04698472,139.63,139.6,7.2165777]
[1742882073185,7.20818472,139.63,139.6,7.2165777]
[1742882074674,7.20818472,139.63,139.61,7.1618]
[1742882074882,7.20818472,139.63,139.6,0.0543777]
[1742882075387,7.20818472,139.63,139.6,7.2165777]
[1742882075584,7.20818472,139.63,139.6,0.0543777]
[1742882075886,7.20818472,139.63,139.6,7.2166777]
[1742882076080,7.1614,139.62,139.6,7.2166777]
[1742882076986,7.1614,139.62,139.6,0.0543777]
[1742882078285,7.1619,139.61,139.6,0.0543777]
[1742882083793,7.1616,139.62,139.6,0.0543777]
[1742882084892,7.1619,139.61,139.6,0.0543777]
[1742882091099,7.1616,139.62,139.6,0.0543777]
[1742882091700,0.04698472,139.63,139.6,0.0543777]
[1742882092091,0.04698472,139.63,139.61,7.1616]
[1742882094596,0.04698472,139.63,139.62,7.1614]
[1742882098005,0.04698472,139.63,139.62,32.6614]
[1742882098194,7.1584,139.68,139.65,7.1596]
[1742882099405,7.20781252,139.68,139.65,7.20957398]
[1742882100614,0.04941252,139.68,139.65,0.04997398]
[1742882101115,7.1593,139.66,139.65,0.04997398]
[1742882103907,8.25957332,139.66,139.56,297.14434294]
[1742882104214,8.25957332,139.63,139.57,32.6637]
[1742882104412,7.1622,139.61,139.57,25.5]
[1742882105114,0.04652124,139.6,139.58,7.20929671]
[1742882106717,7.20902124,139.6,139.58,7.20929671]
[1742882106914,0.04652124,139.6,139.58,0.04599671]
[1742882107618,7.1629,139.59,139.58,0.04599671]
[1742882121133,7.1638,139.58,139.51,4.0829]
[1742882121335,7.1638,139.58,139.55,7.1649]
[1742882121932,7.164,139.57,139.55,7.1649]
[1742882122230,8.25957332,139.61,139.54,25.5]
[1742882122429,0.04810903,139.57,139.55,0.0472339]
[1742882122936,0.04810903,139.57,139.55,7.2121339]
[1742882124431,7.21220903,139.57,139.55,0.0472339]
[1742882126737,7.21220903,139.57,139.55,7.2121339]
[1742882127638,7.21220903,139.57,139.55,0.0472339]
[1742882132642,7.1645,139.56,139.55,0.0472339]
[1742882132843,0.04810903,139.57,139.55,0.0472339]
[1742882133242,7.21220903,139.57,139.55,0.0472339]
[1742882136436,0.04810903,139.57,139.56,7.1645]
[1742882136746,1.901,139.64,139.56,25.5]
[1742882136947,7.1617,139.62,139.58,7.163]
[1742882137544,7.1617,139.62,139.59,7.1629]
[1742882137751,0.05265476,139.61,139.59,7.21003938]
[1742882140446,0.05265476,139.61,139.6,7.1624]
[1742882141750,0.05265476,139.61,139.59,7.20983938]
[1742882141949,0.05265476,139.61,139.59,0.04713938]
[1742882143453,0.05265476,139.61,139.6,7.1624]
[1742882163267,25.5,139.67,139.59,25.54713938]
[1742882163565,29.4117,139.68,139.62,25.48]
[1742882163771,29.4117,139.68,139.63,7.1606]
[1742882163772,7.1596,139.66,139.63,7.1606]
[1742882164471,7.1596,139.66,139.63,7.21040261]
[1742882164472,7.16,139.65,139.63,7.21040261]
[1742882165381,0.04529999,139.66,139.63,7.21040261]
[1742882165382,7.20489999,139.66,139.63,7.21040261]
[1742882170086,7.16,139.65,139.63,7.21040261]
[1742882170884,7.1604,139.64,139.63,0.04980261]
[1742882171285,7.1601,139.65,139.63,0.04980261]
[1742882184193,7.20489999,139.66,139.63,0.04980261]
[1742882184790,0.04529999,139.66,139.64,7.1601]
[1742882185794,7.20489999,139.66,139.63,7.21050261]
[1742882187697,7.20489999,139.66,139.63,0.04980261]
[1742882188297,7.20489999,139.66,139.63,7.21040261]
[1742882188997,7.20489999,139.66,139.64,7.1603]
[1742882190300,0.04529999,139.66,139.64,7.1603]
[1742882191003,7.20469999,139.66,139.64,7.1603]
[1742882192896,7.20469999,139.66,139.63,0.04980261]
[1742882192897,0.04529999,139.66,139.63,0.04980261]
[1742882193804,0.04529999,139.66,139.64,7.1604]
[1742882198001,0.04529999,139.66,139.65,7.1598]
[1742882202112,1.9616,139.71,139.65,25.46]
[1742882202406,1.9435,139.73,139.65,25.46]
[1742882202712,7.1566,139.72,139.69,7.1575]
[1742882203304,7.20414977,139.72,139.69,7.2120704]
[1742882203512,7.1569,139.71,139.69,0.0545704]
[1742882203904,0.04754977,139.72,139.69,0.0545704]
[1742882205915,7.20414977,139.72,139.69,0.0545704]
[1742882206212,0.04754977,139.72,139.69,0.0545704]
[1742882207414,7.1568,139.71,139.69,0.0545704]
[1742882207716,0.04754977,139.72,139.69,0.0545704]
[1742882208111,7.1569,139.71,139.69,0.0545704]
[1742882208317,0.04754977,139.72,139.69,0.0545704]
[1742882208518,7.1573,139.7,139.69,0.0545704]
[1742882209123,7.157,139.71,139.69,0.0545704]
[1742882210110,7.20404977,139.72,139.69,7.2122704]
[1742882211221,0.04754977,139.72,139.71,7.1568]
[1742882211411,0.04754977,139.72,139.71,32.6168]
[1742882212415,0.04754977,139.72,139.71,25.46]
[1742882213820,7.20384977,139.72,139.71,25.46]
[1742882214115,0.04754977,139.72,139.69,0.0545704]
[1742882214818,7.1573,139.7,139.69,0.0545704]
[1742882224121,7.1597,139.66,139.63,25.44]
[1742882224327,25.44,139.7,139.62,3.9326]
[1742882224625,10.15557332,139.69,139.62,25.44]
[1742882224827,12.06707332,139.69,139.62,25.44]
[1742882225019,7.1606,139.64,139.62,25.44]
[1742882225427,7.21360933,139.64,139.62,25.48576195]
[1742882227127,7.21360933,139.64,139.62,0.04576195]
[1742882227529,7.1609,139.63,139.62,0.04576195]
[1742882231229,0.05300933,139.64,139.62,7.20696195]
[1742882232027,0.05300933,139.64,139.62,0.04576195]
[1742882232228,7.21360933,139.64,139.62,0.04576195]
[1742882233730,0.05300933,139.64,139.62,7.20716195]
[1742882233930,0.05300933,139.64,139.62,0.04576195]
[1742882234429,0.05300933,139.64,139.62,7.20686195]
[1742882234628,7.21350933,139.64,139.62,7.20686195]
[1742882237837,0.05300933,139.64,139.62,7.20686195]
[1742882238636,0.05300933,139.64,139.63,7.1609]
[1742882242834,0.05300933,139.64,139.62,32.66686195]
[1742882243026,0.05300933,139.64,139.62,0.04576195]
[1742882244340,7.1609,139.63,139.62,0.04576195]
[1742882248342,7.21360933,139.64,139.62,0.04576195]
[1742882248543,0.05300933,139.64,139.62,0.04576195]
[1742882248739,0.05300933,139.64,139.62,7.20686195]
[1742882249136,7.21340933,139.64,139.62,7.20686195]
[1742882252037,7.21340933,139.64,139.62,0.04576195]
[1742882254445,7.21340933,139.64,139.62,7.20716195]
[1742882254643,0.05300933,139.64,139.62,0.04576195]
[1742882256442,0.05300933,139.64,139.63,7.1609]
[1742882266367,0.05300933,139.64,139.62,7.20696195]
[1742882269460,7.21360933,139.64,139.62,7.20696195]
[1742882273562,7.21360933,139.64,139.62,0.04576195]
[1742882275055,7.21360933,139.64,139.62,7.20706195]
[1742882276264,7.21360933,139.64,139.62,0.04576195]
[1742882276563,7.1609,139.63,139.62,0.04576195]
[1742882277567,7.21360933,139.64,139.62,0.04576195]
[1742882280874,7.1609,139.63,139.62,0.04576195]
[1742882285680,7.21360933,139.64,139.62,0.04576195]
[1742882287280,7.1609,139.63,139.62,0.04576195]
[1742882297784,0.05300933,139.64,139.62,0.04576195]
[1742882298587,0.05300933,139.64,139.63,7.1609]
[1742882300986,0.05300933,139.64,139.62,7.20696195]
[1742882301193,0.05300933,139.64,139.62,0.04576195]
[1742882301691,7.1609,139.63,139.62,0.04576195]
[1742882319020,25.44,139.63,139.57,7.1638]
[1742882319709,7.1622,139.61,139.58,7.1633]
[1742882320109,7.21033473,139.61,139.58,7.21031473]
[1742882321815,7.21033473,139.61,139.59,7.1629]
[1742882324616,0.04813473,139.61,139.58,0.04701473]
[1742882325519,0.04813473,139.61,139.59,7.1626]
[1742882328617,7.21003473,139.61,139.59,7.1626]
[1742882331516,7.21003473,139.61,139.58,7.21021473]
[1742882333419,7.21003473,139.61,139.59,7.1628]
[1742882333616,0.04813473,139.61,139.59,7.1628]
[1742882334324,7.21013473,139.61,139.59,7.1628]
[1742882335416,7.21013473,139.61,139.58,7.21021473]
[1742882338524,7.21013473,139.61,139.59,7.1628]
[1742882339725,7.21013473,139.61,139.58,7.21021473]
[1742882340024,7.21013473,139.61,139.58,0.04701473]
[1742882341428,7.21013473,139.61,139.59,7.1629]
[1742882343425,7.1627,139.6,139.58,0.04701473]
[1742882346225,0.04813473,139.61,139.58,0.04701473]
[1742882346226,7.1629,139.59,139.58,0.04701473]
[1742882354433,7.1647,139.56,139.53,7.1658]
[1742882355632,7.21480921,139.56,139.53,7.22015968]
[1742882355836,7.21480921,139.56,139.54,7.1655]
[1742882356136,0.05010921,139.56,139.54,7.1655]
[1742882357037,0.05010921,139.56,139.54,25.44]
[1742882357238,25.44,139.62,139.54,25.44]
[1742882358337,0.05467912,139.59,139.58,7.1632]
[1742882390175,8.25957332,139.66,139.57,25.46590603]
[1742882390380,25.42,139.66,139.57,25.42]
[1742882390683,32.5796,139.66,139.63,7.1606]
[1742882390979,25.42,139.66,139.63,7.1606]
[1742882391382,25.47451595,139.66,139.63,7.21109655]
[1742882392179,7.1599,139.65,139.63,7.21109655]
[1742882392381,0.05451595,139.66,139.64,7.1603]
[1742882393478,7.21411595,139.66,139.63,7.21119655]
[1742882393681,0.05451595,139.66,139.63,7.21119655]
[1742882394579,7.1601,139.65,139.63,0.05049655]
[1742882395086,0.05451595,139.66,139.63,0.05049655]
[1742882395279,7.1604,139.64,139.63,0.05049655]
[1742882395480,8.25957332,139.65,139.6,25.42]
[1742882395885,7.1616,139.62,139.6,25.42]
[1742882396482,7.1616,139.62,139.6,25.46596541]
[1742882396788,7.21147297,139.62,139.6,25.46596541]
[1742882397188,7.1619,139.61,139.6,0.04596541]
[1742882400988,7.21147297,139.62,139.6,0.04596541]
[1742882401487,7.1619,139.61,139.6,0.04596541]
[1742882402189,7.21147297,139.62,139.6,0.04596541]
[1742882402594,0.04987297,139.62,139.6,0.04596541]
[1742882402792,7.1619,139.61,139.6,0.04596541]
[1742882402992,0.04987297,139.62,139.6,0.04596541]
[1742882403491,7.21127297,139.62,139.6,0.04596541]
[1742882404189,7.1619,139.61,139.6,0.04596541]
[1742882405190,32.5819,139.61,139.6,0.04596541]
[1742882405587,7.1635,139.58,139.55,7.1648]
[1742882406692,7.21449694,139.58,139.55,7.21703608]
[1742882407088,7.1642,139.57,139.55,0.05223608]
[1742882407290,0.05099694,139.58,139.55,0.05223608]
[1742882407683,7.1645,139.56,139.55,0.05223608]
[1742882408391,7.1642,139.57,139.55,0.05223608]
[1742882408893,7.21469694,139.58,139.55,0.05223608]
[1742882409888,7.21469694,139.58,139.55,7.21713608]
[1742882410383,0.05099694,139.58,139.55,7.21713608]
[1742882413196,0.05099694,139.58,139.56,7.1643]
[1742882413997,0.05099694,139.58,139.57,7.164]
[1742882417197,0.05099694,139.58,139.56,7.1643]
[1742882417398,0.05099694,139.58,139.55,0.05223608]
[1742882417698,0.05099694,139.58,139.57,7.164]
[1742882426307,0.05099694,139.58,139.56,7.1642]
[1742882429802,0.05099694,139.58,139.55,0.05223608]
[1742882430406,0.05099694,139.58,139.56,7.1642]
[1742882432210,7.21439694,139.58,139.56,7.1642]
[1742882432411,25.47099694,139.58,139.55,0.05223608]
[1742882432809,7.1645,139.56,139.55,0.05223608]
[1742882434913,7.1641,139.57,139.55,0.05223608]
[1742882435719,32.63469694,139.58,139.55,0.05223608]
[1742882436211,25.47099694,139.58,139.55,0.05223608]
[1742882436410,25.47099694,139.58,139.55,7.21683608]
[1742882436620,25.47099694,139.58,139.55,0.05223608]
[1742882436913,0.05099694,139.58,139.55,0.05223608]
[1742882438113,0.05099694,139.58,139.56,7.1642]
[1742882438313,0.05099694,139.58,139.55,0.05223608]
[1742882438519,0.05099694,139.58,139.57,7.164]
[1742882456531,0.05099694,139.58,139.56,7.1642]
[1742882457532,0.05099694,139.58,139.57,7.164]
[1742882462835,0.05099694,139.58,139.56,7.1643]
[1742882463033,7.21459694,139.58,139.55,0.05223608]
[1742882463236,0.05099694,139.58,139.55,0.05223608]
[1742882463634,7.1645,139.56,139.55,0.05223608]
[1742882476544,32.5642,139.57,139.55,0.05223608]
[1742882476748,0.05099694,139.58,139.55,0.05223608]
[1742882477149,0.05099694,139.58,139.56,7.1642]
[1742882478446,0.05099694,139.58,139.55,0.05223608]
[1742882481243,0.05099694,139.58,139.55,25.45223608]
[1742882485151,0.05099694,139.58,139.57,7.164]
[1742882486053,14.3166,139.69,139.59,7.1626]
[1742882486250,5.6919,139.68,139.58,25.4]
[1742882486453,31.0919,139.68,139.58,25.4]
[1742882487349,0.04590518,139.64,139.62,0.04640918]
[1742882487652,0.04590518,139.64,139.62,7.20740918]
[1742882488450,0.04590518,139.64,139.62,0.04640918]